[Event "Fagernes Chess GM-Swiss 2024"]
[Site "Fagernes"]
[Date "2024.03.27"]
[Round "4.13"]
[White "Vestby-Ellingsen, Mads"]
[Black "Can, Isik"]
[Result "0-1"]
[ECO "D85"]
[WhiteElo "2336"]
[BlackElo "2493"]
[Annotator "TA"]
[PlyCount "114"]
[EventDate "2024.03.25"]
[EventType "swiss"]
[EventCountry "NOR"]
[SourceTitle "playchess.com"]
[Source "ChessBase"]
[SourceQuality "1"]
[TimeControl "40/6000+30:2400+30"]

{[%evp 23,114,45,55,27,27,4,0,0,0,-13,-19,-46,-40,-45,-48,-26,-34,-29,-31,-78,-67,-76,-75,-62,-76,-78,-79,-83,-75,-75,-75,-158,-159,-162,-166,-170,-158,-277,-282,-274,-261,-280,-288,-329,-268,-479,-304,-501,-451,-435,-434,-767,-777,-720,-465,-465,-465,-843,-793,-778,-455,-1394,-775,-1064,-955,-893,-395,-2020,-1832,-6719,-6719,-10295,-5717,-12826,-5727,-5450,-11301,-29954,-29953,-29967,-29954,-29962,-29968,-29967,-29974,-29973,-29975,-29975,-29976,-29976,-29977,-29973,-29974]} 1. c4 {[%emt 0:02:44]} c5 {[%emt 0:00:18]} 2. Nf3 {[%emt 0:00:30]} Nf6 {[%emt 0:00:05]} 3. Nc3 {[%emt 0:01:02]} d5 {[%emt 0:00:04]} 4. cxd5 {[%emt 0:08:31]} Nxd5 {[%emt 0:10:34]} 5. d4 {[%emt 0:01:38]} Nxc3 {[%emt 0:03:37]} 6. bxc3 {[%emt 0:00:11]} g6 {[%emt 0:00:01]} 7. e4 {[%emt 0:02:31]} Bg7 {[%emt 0:00:30]} 8. Bb5+ {[%emt 0:03:24] 8.Be3 is a critical line.} Nd7 {[%emt 0:08:11] D85: Exchange Grünfeld: Unusual White 7th moves and lines with 7 Nf3.} 9. O-O {[%emt 0:03:36]} a6 {[%emt 0:01:28]} 10. Be2 {[%emt 0:03:26]} O-O {[%emt 0:07:52]} 11. Bg5 {[%emt 0:07:54]} Nf6 $146 {[%emt 0:05:40]} ({Predecessor:} 11... cxd4 12. cxd4 b5 13. Rc1 Bb7 14. d5 Ne5 15. Nd4 Rc8 16. Rxc8 Bxc8 17. Qb3 Qd6 18. Rc1 {1-0 Garayev,M (2440)-Karpov,A (2238) Donskoj 07 2018 (3)}) 12. Qd3 {[%emt 0:04:02]} (12. dxc5 Nxe4 13. Bc4 $19) 12... h6 {[%emt 0:12:51]} 13. Bf4 {[%emt 0:08:37]} b5 $1 {[%emt 0:01:02]} 14. a4 {[%emt 0:17:45]} (14. dxc5 Qxd3 15. Bxd3 Bb7 $17) 14... Bb7 {[%emt 0:02:19]} 15. Nd2 {[%emt 0:06:50]} b4 {[%emt 0:04:16]} 16. Rab1 {[%emt 0:11:37]} (16. dxc5 $2 bxc3 17. Rab1 Qxd3 18. Bxd3 Bc6 $19) 16... cxd4 {[%emt 0:11:29]} 17. Rxb4 {[%emt 0:07:00]} dxc3 $1 {[%emt 0:00:36]} 18. Rxb7 {[%emt 0:01:31]} (18. Qxc3 $2 {too greedy.} Nd5 $19) 18... Qxd3 {[%emt 0:03:45]} 19. Bxd3 {[%emt 0:00:08]} Rfd8 {[%emt 0:01:48]} 20. Be2 $1 {[%emt 0:04:51]} cxd2 {[%emt 0:01:57]} 21. f3 {[%emt 0:00:55] [#]} (21. Rb4 $15) 21... Nh5 $1 $17 {[%emt 0:03:18]} 22. Be3 {[%emt 0:00:18]} Bd4 {[%emt 0:00:30]} 23. Kf2 {[%emt 0:02:21]} Nf4 {[%emt 0:10:09]} 24. Bxd4 {[%emt 0:00:14]} Rxd4 {[%emt 0:00:15]} 25. Rd1 {[%emt 0:01:31]} Nxe2 {[%emt 0:06:14]} 26. Kxe2 {[%emt 0:00:08]} Rad8 {[%emt 0:00:02]} 27. Rb2 {[%emt 0:01:02]} (27. Rxe7 Rxa4 28. Re5 Kf8 $15) (27. a5 $142) 27... Rxa4 $17 {[%emt 0:00:19]} 28. Rdxd2 {[%emt 0:00:35]} Rxd2+ {[%emt 0:00:09]} 29. Rxd2 {[%emt 0:00:07]} Kg7 {[%emt 0:02:33]} 30. Rd7 {[%emt 0:00:16]} (30. Ke3 $17 {keeps fighting.}) 30... Ra2+ $19 {[%emt 0:00:59]} 31. Kf1 {[%emt 0:00:09]} Kf6 {[%emt 0:00:11]} 32. Ra7 {[%emt 0:00:46]} g5 {[%emt 0:01:39]} 33. h3 {[%emt 0:01:25]} h5 {[%emt 0:00:19]} 34. Kg1 $2 {[%emt 0:00:14]} (34. g3) 34... h4 $19 {[%emt 0:01:44]} 35. Kh2 $2 {[%emt 0:00:27]} (35. Rb7) 35... a5 $19 {[%emt 0:03:17]} 36. Ra6+ {[%emt 0:01:40]} e6 {[%emt 0:00:01]} 37. Ra7 {[%emt 0:00:24]} (37. Kg1 $142) 37... a4 $19 {[%emt 0:00:29]} 38. Ra5 {[%emt 0:01:37]} Ra1 {[%emt 0:00:38]} 39. Ra7 {[%emt 0:00:11]} a3 {[%emt 0:01:58]} 40. Ra5 {[%emt 0:00:13]} (40. Ra6 $142) 40... e5 $19 {[%emt 0:02:52]} 41. Ra6+ {[%emt 0:40:36]} Ke7 {[%emt 0:40:28]} 42. Ra7+ {[%emt 0:00:16]} (42. Rc6 $142) 42... Ke6 {[%emt 0:00:37]} 43. Ra6+ {[%emt 0:01:06]} Kd7 {[%emt 0:00:28]} 44. Ra5 {[%emt 0:00:00]} f6 {[%emt 0:00:00]} 45. Ra6 $2 {[%emt 0:00:00]} (45. Rc5) 45... Kc7 $19 {[%emt 0:00:00]} 46. Rxf6 {[%emt 0:00:00]} Rc1 {[%emt 0:00:00]} 47. Ra6 {[%emt 0:00:00]} Rc3 {[%emt 0:00:00]} 48. Kg1 {[%emt 0:00:00]} Kb7 {[%emt 0:00:00]} 49. Ra4 {[%emt 0:00:00]} Kb6 {[%emt 0:00:00]} (49... Kc6 $142 50. Kf1 Kb5) 50. Kf1 {[%emt 0:00:00]} Kb5 {[%emt 0:00:00]} 51. Ra8 {[%emt 0:00:00]} Kc4 {[%emt 0:00:00]} 52. Ke2 {[%emt 0:00:00]} Kb3 {[%emt 0:00:00]} 53. Kd2 {[%emt 0:00:00]} Kb2 {[%emt 0:00:00]} 54. Ra5 {[%emt 0:00:00]} Rb3 {[%emt 0:00:00]} 55. Rxe5 {[%emt 0:00:00]} a2 {[%emt 0:00:00]} 56. Ra5 {[%emt 0:00:00]} a1=Q {[%emt 0:00:00]} ({Worse is} 56... a1=B 57. Rxg5 Rb8 58. e5 $18) 57. Rxa1 {[%emt 0:00:00]} Kxa1 {[%emt 0:00:00]} 0-1

[Event "Fagernes Chess GM-Swiss 2024"]
[Site "Fagernes"]
[Date "2024.03.27"]
[Round "4.14"]
[White "Mitusov, Semen"]
[Black "Moksh Amit Doshi"]
[Result "1/2-1/2"]
[ECO "B50"]
[WhiteElo "2487"]
[BlackElo "2353"]
[Annotator "TA"]
[PlyCount "74"]
[EventDate "2024.03.25"]
[EventType "swiss"]
[EventCountry "NOR"]
[SourceTitle "playchess.com"]
[Source "ChessBase"]
[SourceQuality "1"]
[TimeControl "40/6000+30:2400+30"]

{[%evp 12,74,31,17,16,4,8,11,8,0,0,0,2,0,0,10,8,-8,0,-12,-7,0,-6,-32,-25,-18,-35,-43,0,0,0,0,0,0,0,0,0,-22,-12,-15,-9,-19,0,-13,-12,-6,-7,-4,-5,-13,-21,-30,-31,-19,-5,-18,-16,-22,-16,-6,0,-22,0,-25,0]} 1. e4 {[%emt 0:03:02]} c5 {[%emt 0:03:43]} 2. Nf3 {[%emt 0:00:09]} d6 {[%emt 0:00:09]} 3. Bb5+ {[%emt 0:00:35]} Bd7 {[%emt 0:00:12]} 4. Bxd7+ {[%emt 0:01:33]} Nxd7 {[%emt 0:00:15]} 5. O-O {[%emt 0:00:43]} Ngf6 {[%emt 0:00:06]} 6. Qe2 {[%emt 0:01:14]} e6 {[%emt 0:00:11]} 7. b3 {[%emt 0:00:33]} g6 {[%emt 0:00:07]} 8. Bb2 {[%emt 0:01:23]} Bg7 {[%emt 0:00:08]} 9. d4 {[%emt 0:06:22]} cxd4 {[%emt 0:00:48] Die Stellung ist ausgeglichen.} 10. Nxd4 {[%emt 0:01:08]} Nc5 {[%emt 0:03:52]} 11. Nd2 {[%emt 0:04:22]} O-O {[%emt 0:03:21]} 12. c4 {[%emt 0:00:28]} Re8 {[%emt 0:04:07]} 13. Rad1 {[%emt 0:01:23]} a6 {[%emt 0:01:47]} 14. h3 {[%emt 0:05:31]} e5 {[%emt 0:10:21]} 15. N4f3 {[%emt 0:01:44]} Qc7 {[%emt 0:04:35]} 16. Rfe1 {[%emt 0:01:23]} b5 {[%emt 0:03:06]} 17. b4 {[%emt 0:06:11]} Na4 {[%emt 0:02:49]} 18. Ba1 {[%emt 0:00:41]} Qb6 {[%emt 0:06:29]} 19. Nb3 {[%emt 0:07:48]} Rac8 {[%emt 0:14:48]} 20. Na5 {[%emt 0:04:08]} Nh5 {[%emt 0:04:45]} 21. a3 {[%emt 0:03:58]} Nf4 {[%emt 0:01:56]} 22. Qf1 {[%emt 0:03:07]} Red8 {[%emt 0:04:00]} 23. Rd2 {[%emt 0:06:49]} Bf8 {[%emt 0:02:44]} 24. Rc1 {[%emt 0:04:45]} Ne6 {[%emt 0:02:08] Und ...Bh6 würde nun gewinnen.} 25. Rdc2 {[%emt 0:01:11]} Bh6 {[%emt 0:04:26]} 26. Rd1 {[%emt 0:00:17]} Bf8 {[%emt 0:02:53]} (26... Nac5 $5) 27. Qe1 {[%emt 0:07:18]} bxc4 {[%emt 0:03:45]} 28. Nxc4 {[%emt 0:00:43]} Qb8 {[%emt 0:01:04]} 29. Qd2 {[%emt 0:05:58]} Nb6 {[%emt 0:01:46]} 30. Na5 {[%emt 0:04:49]} Qa8 {[%emt 0:00:24] Gegen Nc6 gerichtet.} 31. Re1 {[%emt 0:03:39]} Rxc2 {[%emt 0:03:46]} 32. Qxc2 {[%emt 0:00:01]} Rc8 {[%emt 0:00:25]} 33. Qb3 {[%emt 0:00:12]} Rc7 {[%emt 0:01:36]} 34. Bc3 {[%emt 0:05:06]} Bh6 {[%emt 0:04:43]} 35. Rd1 {[%emt 0:01:16]} Bf8 {[%emt 0:00:32]} 36. Re1 {[%emt 0:00:54]} Bh6 {[%emt 0:00:54]} 37. Rd1 {[%emt 0:01:46]} Bf8 {[%emt 0:00:25] Gewichteter Fehlerwert: Weiß=0.06 (makellos) /Schwarz=0.04 (makellos) .  Ungenau:       	Weiß=1     	Schwarz=1     OK:         	Weiß=12    	Schwarz=17    Bester:       	Weiß=1     	---} 1/2-1/2

[Event "Fagernes Chess GM-Swiss 2024"]
[Site "Fagernes"]
[Date "2024.03.27"]
[Round "4.15"]
[White "Ghasi, Ameet K"]
[Black "Haug, Havard"]
[Result "1-0"]
[ECO "A08"]
[WhiteElo "2485"]
[BlackElo "2341"]
[Annotator "TA"]
[PlyCount "165"]
[EventDate "2024.03.25"]
[EventType "swiss"]
[EventCountry "NOR"]
[SourceTitle "playchess.com"]
[Source "ChessBase"]
[SourceQuality "1"]
[TimeControl "40/6000+30:2400+30"]

{[%evp 58,164,153,107,109,114,102,111,98,105,116,105,105,114,106,113,100,108,95,82,84,79,100,100,95,91,161,163,165,158,152,127,160,150,191,187,230,222,362,338,568,573,590,595,593,462,900,997,722,618,1326,308,300,82,86,8,8,8,8,8,8,8,8,8,8,8,112,112,145,145,145,145,145,145,145,145,29965,29967,29963,29967,29967,29969,29970,29971,29972,29973,29976,29974,29976,29977,29975,29973,29975,29972,29977,29978,29982,29983,29983,29984,29988,29989,29989,29990,29990,29985,29993,29994,29999]} 1. Nf3 {[%emt 0:01:58]} d5 {[%emt 0:01:20]} 2. g3 {[%emt 0:00:07]} c5 {[%emt 0:00:08]} 3. Bg2 {[%emt 0:00:59]} Nf6 {[%emt 0:00:07]} 4. O-O {[%emt 0:00:06]} Nc6 {[%emt 0:00:04]} 5. d3 {[%emt 0:00:28]} e5 {[%emt 0:00:07]} 6. e4 {[%emt 0:04:47]} dxe4 {[%emt 0:00:59]} 7. dxe4 {[%emt 0:00:06]} Qxd1 {[%emt 0:00:08]} 8. Rxd1 {[%emt 0:00:04]} Bg4 {[%emt 0:00:05]} 9. c3 {[%emt 0:10:27]} Nxe4 {[%emt 0:03:13] A08: Königsindisch im Anzug.} 10. h3 {[%emt 0:30:47]} Bxf3 {[%emt 0:06:29]} 11. Bxf3 {[%emt 0:00:16]} Nd6 {[%emt 0:00:16]} 12. Be3 $146 {[%emt 0:13:14]} ({Predecessor:} 12. Bxc6+ bxc6 13. Na3 O-O-O 14. Be3 Nf5 15. Nc4 f6 16. Rxd8+ Kxd8 17. Kg2 Be7 18. Rd1+ {½-½ Dzindzichashvili,R (2460)-De Firmian,N (2475) USA-ch Greenville 1983 (7)}) 12... Nc4 {[%emt 0:03:46]} 13. Nd2 {[%emt 0:00:24]} Nxe3 {[%emt 0:01:55]} 14. fxe3 {[%emt 0:07:11]} f5 {[%emt 0:27:42]} 15. Bd5 {[%emt 0:06:14]} g6 {[%emt 0:13:51]} 16. Nc4 {[%emt 0:01:36]} e4 {[%emt 0:03:04]} 17. g4 {[%emt 0:02:23]} fxg4 {[%emt 0:10:36]} 18. hxg4 {[%emt 0:02:02]} h5 {[%emt 0:03:07]} 19. Bxe4 {[%emt 0:07:50]} hxg4 {[%emt 0:00:23]} 20. Kg2 {[%emt 0:01:18]} Ke7 {[%emt 0:03:07]} 21. Rd6 {[%emt 0:04:31]} Rd8 {[%emt 0:02:12]} 22. Rxd8 {[%emt 0:02:57]} Nxd8 {[%emt 0:03:45]} 23. Ne5 {[%emt 0:00:30]} Rg8 {[%emt 0:03:03]} 24. Rd1 {[%emt 0:04:00]} Kf6 {[%emt 0:06:17]} 25. Nxg4+ {[%emt 0:02:08]} Ke7 {[%emt 0:00:11]} 26. Ne5 {[%emt 0:01:34]} Kf6 {[%emt 0:00:09]} 27. Nxg6 {[%emt 0:03:36]} Be7 {[%emt 0:01:49]} 28. Rf1+ {[%emt 0:00:55]} Ke6 {[%emt 0:00:05]} 29. Bf5+ {[%emt 0:00:59]} Kd6 {[%emt 0:01:12]} 30. Rd1+ {[%emt 0:01:12]} (30. Kf3 $142 {Rd1+ ist eine echte Drohung.} Bf6 31. Ke2) 30... Kc6 $16 {[%emt 0:00:12]} 31. Kf3 {[%emt 0:00:09]} Bd6 {[%emt 0:00:23]} 32. Be4+ {[%emt 0:00:49]} Kc7 {[%emt 0:00:05]} 33. Rh1 {[%emt 0:00:44]} Rg7 {[%emt 0:01:58]} 34. Bf5 {[%emt 0:00:02]} Rf7 {[%emt 0:03:21]} 35. Ke4 {[%emt 0:00:29]} Nc6 {[%emt 0:02:55]} 36. Nf4 {[%emt 0:00:38]} Re7+ {[%emt 0:02:30]} 37. Ne6+ {[%emt 0:00:09]} Kb6 {[%emt 0:00:40]} 38. Rd1 {[%emt 0:00:16]} Bc7 {[%emt 0:00:23]} 39. Kf3 {[%emt 0:01:11]} Ne5+ {[%emt 0:03:38]} 40. Ke2 {[%emt 0:00:01]} Nc4 {[%emt 0:00:40]} 41. e4 {[%emt 0:02:19]} Nd6 {[%emt 0:04:45]} (41... Bb8 $16 42. b3 Nd6) 42. Kf3 {[%emt 0:07:09]} Kc6 {[%emt 0:03:31]} 43. Nxc7 {[%emt 0:03:51]} Kxc7 {[%emt 0:00:15]} 44. Rd2 {[%emt 0:09:48]} b6 {[%emt 0:00:16]} 45. Kf4 {[%emt 0:01:01]} Rf7 {[%emt 0:00:12]} 46. Rh2 {[%emt 0:00:36]} a5 {[%emt 0:03:16]} 47. a4 {[%emt 0:03:30]} Kc6 {[%emt 0:02:39]} (47... Rf8 {war nötig.} 48. Rh6 Nc4) 48. Rh6 $18 {[%emt 0:01:11]} Kc7 $2 {[%emt 0:00:10]} (48... Rf8 49. Ke5 Re8+ 50. Re6 Rd8) 49. Rh7 $18 {[%emt 0:12:51]} Rxh7 {[%emt 0:00:58]} 50. Bxh7 {[%emt 0:00:02]} Nc4 {[%emt 0:03:22]} 51. b3 {[%emt 0:01:28]} Nd2 {[%emt 0:00:58]} (51... Nb2 $142 52. Ke5 c4) 52. e5 $18 {[%emt 0:01:32]} Kd7 {[%emt 0:03:04]} 53. Bc2 {[%emt 0:01:40]} Ke6 {[%emt 0:00:35]} 54. Bf5+ $2 {[%emt 0:00:12]} (54. Bd3 {Und jetzt Ke3 wäre schön.} c4 55. Bxc4+ (55. bxc4 Nb3 $18) 55... Kd7 56. Ke3) 54... Ke7 $18 {[%emt 0:00:30]} 55. Ke3 $2 {[%emt 0:00:51]} ({Viel schwächer ist} 55. Bc2 c4 56. b4 Kd7) (55. Bd3 $1 $18 {und der Rest ist Schweigen. Droht Ke3 und aus.} Nxb3 56. Bb5) 55... Nxb3 $16 {[%emt 0:00:11]} 56. Bd3 {[%emt 0:00:43]} ({Vorzuziehen ist} 56. Kd3 $1 $16) 56... c4 $1 $11 {[%emt 0:01:11]} 57. Bxc4 {[%emt 0:00:02]} Nc5 {[%emt 0:00:06]} 58. Bb5 {[%emt 0:00:02]} Ke6 {[%emt 0:00:21]} 59. Kd4 {[%emt 0:00:06]} Nb3+ {[%emt 0:00:09]} 60. Ke4 {[%emt 0:00:05]} Nc5+ $1 {[%emt 0:02:02]} 61. Kf4 {[%emt 0:00:01]} (61. Kd4 $5) 61... Ke7 {[%emt 0:01:22]} (61... Kf7 $1 $11) 62. Kf5 $16 {[%emt 0:00:08]} Kf7 {[%emt 0:09:10]} 63. e6+ $1 {[%emt 0:00:19]} Ke7 {[%emt 0:00:39]} 64. Ke5 {[%emt 0:00:06]} Nxe6 {[%emt 0:00:54]} 65. Kd5 {[%emt 0:00:12]} Nd8 {[%emt 0:06:30] [#]} 66. c4 $1 {[%emt 0:00:13]} Ne6 $2 {[%emt 0:00:32][%mdl 8192]} (66... Kf6 $16) 67. Kc6 {[%emt 0:00:20]} Nc5 {[%emt 0:00:38]} 68. Kxb6 {[%emt 0:02:00]} Kd6 {[%emt 0:00:28]} 69. Kxa5 {[%emt 0:00:05]} Kc7 {[%emt 0:00:06]} 70. Be8 {[%emt 0:01:00]} Nb7+ {[%emt 0:03:38] [#]} 71. Kb4 $1 {[%emt 0:00:05]} Kb6 {[%emt 0:00:44]} 72. Bh5 {[%emt 0:01:35]} Ka7 {[%emt 0:00:41]} 73. Bf3 {[%emt 0:00:18]} Nd6 {[%emt 0:00:10]} 74. Bd5 {[%emt 0:00:26]} Ne8 {[%emt 0:00:36]} 75. Kb5 {[%emt 0:00:43]} Nc7+ {[%emt 0:00:10]} 76. Kc6 {[%emt 0:00:13]} Na6 {[%emt 0:00:22]} 77. c5 {[%emt 0:00:31]} Nb4+ {[%emt 0:01:36]} 78. Kd6 {[%emt 0:00:04]} Na6 {[%emt 0:00:30]} 79. Bc4 {[%emt 0:00:06]} Nb8 {[%emt 0:01:22]} 80. Bb5 {[%emt 0:00:04]} Kb7 {[%emt 0:00:11]} 81. c6+ {[%emt 0:00:05]} Kc8 {[%emt 0:00:09]} 82. c7 {[%emt 0:00:18]} Nc6 {[%emt 0:00:09]} 83. Ba6# {[%emt 0:00:04]} 1-0

[Event "Fagernes Chess GM-Swiss 2024"]
[Site "Fagernes"]
[Date "2024.03.27"]
[Round "4.16"]
[White "Sokolovsky, Yahli"]
[Black "Lund, Gunnar"]
[Result "1/2-1/2"]
[ECO "C02"]
[WhiteElo "2475"]
[BlackElo "2335"]
[Annotator "TA"]
[PlyCount "114"]
[EventDate "2024.03.25"]
[EventType "swiss"]
[EventCountry "NOR"]
[SourceTitle "playchess.com"]
[Source "ChessBase"]
[SourceQuality "1"]
[TimeControl "40/6000+30:2400+30"]

{[%evp 13,114,0,0,-7,26,14,57,46,35,52,35,46,77,-3,8,13,17,16,46,60,75,-11,0,0,0,0,0,0,0,0,0,-2,0,0,0,0,0,-75,-54,-63,-52,-60,0,-6,-6,-3,-3,-2,-3,-1,-6,-34,-39,-46,-45,-43,-38,-47,-49,-41,-41,-65,-57,-58,-54,-51,-37,-46,-39,-47,-46,-46,-38,-39,-37,-39,-35,-42,-51,-50,-36,-51,-51,-43,-8,-11,-8,-8,-8,-8,0,-8,-8,-47,-47,-47,-8,-31,0,-47,-8,-31,-8]} 1. e4 {[%emt 1:06:42]} e6 {[%emt 0:12:57]} 2. d4 {[%emt 0:00:06]} d5 {[%emt 0:00:09]} 3. e5 {[%emt 0:00:04]} c5 {[%emt 0:00:23]} 4. c3 {[%emt 0:00:05]} Nc6 {[%emt 0:00:09]} 5. Nf3 {[%emt 0:00:05]} Nh6 {[%emt 0:00:07]} 6. Bxh6 {[%emt 0:08:24]} gxh6 {[%emt 0:00:16]} 7. dxc5 {[%emt 0:02:13]} Bxc5 {[%emt 0:03:25]} 8. Bd3 {[%emt 0:03:56]} Bd7 {[%emt 0:05:06]} 9. O-O {[%emt 0:01:54]} Qc7 {[%emt 0:06:28]} 10. b4 {[%emt 0:08:50] White is slightly better.} Bf8 {[%emt 0:02:07]} 11. Re1 {[%emt 0:01:42]} Bg7 {[%emt 0:16:27]} 12. Qe2 {[%emt 0:00:08]} O-O {[%emt 0:00:17]} 13. Bc2 {[%emt 0:16:45]} (13. Nbd2 $16) 13... f6 {[%emt 0:11:09]} 14. exf6 {[%emt 0:01:21]} Rxf6 {[%emt 0:01:27]} (14... Bxf6 {simplifies} 15. Na3 a6 16. Rac1 Qf4) 15. Qd3 {[%emt 0:06:16]} Be8 {[%emt 0:05:36]} 16. Qxh7+ {[%emt 0:03:25]} Kf8 {[%emt 0:01:17][%cal Of6f3] And now ...Rxf3! would win.} 17. b5 {[%emt 0:09:57] [#] White is more active.} (17. Nbd2 $16) 17... Rxf3 $1 {[%emt 0:02:05]} 18. bxc6 {[%emt 0:04:48]} ({Much weaker is} 18. gxf3 Ne5 19. Re3 Bf7 20. Rxe5 (20. Nd2 $2 Bg8 $19) 20... Qxe5 $19) 18... Rf6 {[%emt 0:01:09]} 19. cxb7 {[%emt 0:02:21]} Rb8 {[%emt 0:00:52]} 20. Nd2 {[%emt 0:06:20] aiming for Nf3.} Qxc3 {[%emt 0:03:06]} 21. Nb3 {[%emt 0:04:56]} Rxb7 {[%emt 0:01:44][%cal Of6f2]} 22. Re3 $132 {[%emt 0:00:30][%mdl 2048] White puts up resistance. Really sharp!} Qb4 {[%emt 0:02:48][%cal Oe6e5]} 23. Rae1 {[%emt 0:03:55]} Re7 {[%emt 0:02:19]} 24. Qd3 {[%emt 0:00:45] Wards off e5} Bf7 {[%emt 0:05:45][%cal Oe6e5]} 25. Bb1 {[%emt 0:14:06] [#]} (25. a3 $11 Qxa3 26. Qd1) 25... e5 $1 $17 {[%emt 0:03:39]} 26. Rc1 {[%emt 0:00:04]} (26. f3 d4) 26... Qb8 {[%emt 0:01:52] Wards off Rc8+} 27. Qe2 {[%emt 0:03:24]} Rc7 {[%emt 0:02:46]} ({Black should try} 27... e4 $15) 28. Rxc7 $11 {[%emt 0:04:01]} (28. Rxe5 $2 {loses.} Rxc1+ 29. Nxc1 Rc6 $19 (29... Qxb1 $2 30. Qd1 $19) (29... Qxb1 $2 30. Qd1 $19)) 28... Qxc7 {[%emt 0:00:07]} 29. Rxe5 {[%emt 0:00:03] [#]} Rxf2 $1 {[%emt 0:00:52]} 30. Re8+ {[%emt 0:00:24]} Bxe8 {[%emt 0:00:08] A strong pair of Bishops.} 31. Qxf2+ {[%emt 0:00:04]} Kg8 {[%emt 0:02:52]} 32. Qf5 {[%emt 0:02:34]} Qe5 {[%emt 0:00:28]} 33. Qxe5 {[%emt 0:00:20]} Bxe5 $15 {[%emt 0:00:02][%mdl 4096] Endgame. KBB-KBN} 34. Kf2 {[%emt 0:00:42]} Kf8 {[%emt 0:01:23]} ({Inferior is} 34... Bxh2 35. g3 $16) 35. g3 {[%emt 0:00:07]} Ke7 {[%emt 0:00:45]} 36. Ke3 {[%emt 0:00:02]} Bc7 {[%emt 0:00:19]} 37. Bd3 {[%emt 0:01:39]} Bb6+ {[%emt 0:00:12]} 38. Kf4 {[%emt 0:00:13]} Kf6 {[%emt 0:00:08]} 39. Nd2 {[%emt 0:00:25]} Bc5 {[%emt 0:03:46]} 40. Nf3 {[%emt 0:02:21]} Bd7 {[%emt 0:01:22]} 41. Ne1 {[%emt 0:13:18]} a5 {[%emt 0:06:21]} 42. Ba6 {[%emt 0:05:43]} Bf5 {[%emt 0:09:07]} 43. Bd3 {[%emt 0:00:58]} Be6 {[%emt 0:00:56]} 44. Bb5 {[%emt 0:02:18]} Bb4 {[%emt 0:04:47]} 45. Nf3 {[%emt 0:01:26] Prevents Bd2+.} Bf5 {[%emt 0:01:36]} 46. Bc6 {[%emt 0:01:58]} Be4 {[%emt 0:02:12]} 47. g4 {[%emt 0:00:11]} Ba3 {[%emt 0:00:51]} 48. Ke3 {[%emt 0:02:13]} Bc1+ {[%emt 0:00:41]} (48... Ke6 $5 {[%cal Re4b1]}) 49. Ke2 {[%emt 0:00:03]} Ke6 {[%emt 0:02:45]} 50. Bb5 {[%emt 0:01:22]} Bb1 {[%emt 0:02:43]} 51. a4 {[%emt 0:01:14]} Kd6 {[%emt 0:00:16]} 52. h4 {[%emt 0:03:10]} Kc5 {[%emt 0:03:19]} 53. g5 {[%emt 0:01:41]} hxg5 {[%emt 0:02:58]} 54. hxg5 {[%emt 0:00:01]} Kb4 {[%emt 0:01:47]} 55. Bc6 {[%emt 0:03:53]} Kc5 {[%emt 0:02:42]} 56. Be8 {[%emt 0:01:13]} (56. Bb5 $1 $11 {was preferrable.}) 56... d4 {[%emt 0:02:06] Strongly threatening ...d3+.} 57. Bb5 {[%emt 0:01:46]} Bf4 {[%emt 0:05:37] Weighted Error Value: White=0.12 (very precise) /Black=0.09 (flawless) .  Mistake:       	White=4     	Black=1      Inaccurate:     	White=2     	Black=8      OK:         	White=23    	Black=15     Best:        	White=2     	Black=3      Brilliant:      	---       	Black=1} 1/2-1/2